[Event "57th Biel Festival MTO 2024"]
[White "Amartuvshin,Ganzorig"]
[Black "Nurman,Alua"]
[Site "Biel"]
[Round "3.20"]
[Annotator "TA"]
[Result "0-1"]
[Date "2024.07.17"]
[WhiteElo "2411"]
[BlackElo "2274"]
[PlyCount "120"]
[TimeControl "60"]

{[%evp 25,120,0,-9,-10,-3,-12,0,-73,-77,-68,0,0,0,0,10,3,25,42,35,30,22,27,17,10,34,23,36,0,0,0,37,30,89,83,92,106,93,0,4,0,0,0,0,0,8,0,0,0,0,0,0,-22,-48,-84,0,-45,-36,-97,-38,-189,-197,-177,-198,-160,-111,-103,-83,-138,-133,-142,0,0,0,0,8,8,8,0,0,0,0,0,0,0,0,0,0,-29994,-29995,-29995,-29995,-29995,-29974,-29995,-29996,-29998,-29999]} 1. d4 {[%emt 0:0:2]} Nf6 {[%emt 0:7:30]} 2. c4 {[%emt 0:0:6]} e6 {[%emt 0:0:21]} 3. Nf3 {[%emt 0:0:10]} d5 {[%emt 0:0:9]} 4. Nc3 {[%emt 0:0:8]} Be7 {[%emt 0:1:5]} 5. Bf4 {[%emt 0:0:15]} O-O {[%emt 0:0:35]} 6. a3 {[%emt 0:0:13]} b6 {[%emt 0:0:46]} 7. cxd5 {[%emt 0:5:7]} Nxd5 {[%emt 0:0:57]} 8. Nxd5 {[%emt 0:0:38]} exd5 {[%emt 0:0:16]} 9. e3 {[%emt 0:0:17]} c5 {[%emt 0:0:52]} 10. dxc5 {[%emt 0:2:1] D37: Queen's Gambit Declined: 5 Bf4.} bxc5 {[%emt 0:0:16]} 11. Be2 {[%emt 0:0:14]} Be6 {[%emt 0:10:39]} 12. O-O {[%emt 0:0:16]} Qb6 {[%emt 0:3:36]} 13. Qc2 {[%emt 0:0:49]} Nc6 {[%emt 0:1:13]} 14. Rac1 $146 {[%emt 0:2:50]} ({Predecessor:} 14. Ng5 Bxg5 15. Bxg5 f6 16. Bf4 c4 17. Rad1 Rad8 18. Rfe1 Rf7 19. h4 Rfd7 20. h5 {½-½ Los,A (2330)-Krabbe,W (2320) GER-UKR email 2014 [28]} )Rac8 {[%emt 0:3:2]} 15. Bd3 {[%emt 0:1:14]} h6 {[%emt 0:4:6]} 16. Qe2 {[%emt 0:6:8]} (16. b3 $11 )Bf6 {[%emt 0:7:42]} 17. Ba6 {[%emt 0:1:9] [#]} c4 {[%emt 0:23:5]} (17... Qxb2 18. Qxb2 (18. Rxc5 Qxe2 19. Bxe2 Ne5 $15 )Bxb2 19. Rxc5 (19. Bxc8 Rxc8 20. Rxc5 Bxa3 $16 )Bxa3 20. Bxc8 Rxc8 (20... Bxc5 $2 21. Bxe6 fxe6 22. Rc1 $18 )21. Rb5 $16 )({Black should try} 17... Rcd8 $1 $15 18. Qb5 Nb8 (18... Bxb2 19. Rxc5 Ne7 20. a4 $14 )19. Bxb8 Rxb8 20. Rxc5 Qd6 )18. Bxc8 $11 {[%emt 0:0:30]} Rxc8 {[%emt 0:0:1]} 19. Rc2 {[%emt 0:2:16]} Bf5 {[%emt 0:2:32]} 20. Rd2 $1 {[%emt 0:3:26]} Bd3 {[%emt 0:3:30]} 21. Rxd3 $1 {[%emt 0:0:9]} cxd3 {[%emt 0:0:2]} 22. Qxd3 {[%emt 0:0:7]} Bxb2 {[%emt 0:0:27]} 23. h3 {[%emt 0:6:32]} Qc5 {[%emt 0:2:14]} 24. a4 {[%emt 0:1:24]} Qc4 {[%emt 0:4:7]} 25. Qb1 {[%emt 0:0:34]} Qb4 {[%emt 0:1:49]} 26. Bd6 {[%emt 0:5:59]} Qxd6 {[%emt 0:2:18]} 27. Qxb2 {[%emt 0:0:5]} Qb4 {[%emt 0:0:59]} 28. Qa1 {[%emt 0:0:9]} a5 {[%emt 0:4:24]} (28... Re8 $11 )29. Rb1 $1 $16 {[%emt 0:1:18]} Qe4 {[%emt 0:0:50]} 30. Rc1 $1 {[%emt 0:2:1]} Ne7 {[%emt 0:3:7]} 31. Rd1 {[%emt 0:4:16]} (31. Rxc8+ $16 Nxc8 32. Qc3 )Nc6 {[%emt 0:5:34]} 32. Nd2 {[%emt 0:4:40]} Qc2 {[%emt 0:0:39]} 33. Nf3 {[%emt 0:3:3]} Nb4 {[%emt 0:1:26]} 34. Nd4 {[%emt 0:0:12]} Qe4 {[%emt 0:2:41]} 35. Qb2 {[%emt 0:1:11]} Rc4 {[%emt 0:1:54]} 36. Qe2 {[%emt 0:1:30]} Kh7 {[%emt 0:7:9]} 37. Nb3 {[%emt 0:4:43]} Nc6 {[%emt 0:2:2]} 38. f3 {[%emt 0:1:27]} Qe5 {[%emt 0:1:54]} 39. e4 {[%emt 0:0:7]} Rxa4 {[%emt 0:2:43]} (39... Nb4 $17 40. Rxd5 Qc3 )40. Rxd5 {[%emt 0:2:25]} (40. Qb5 $5 Ra2 (40... dxe4 $2 41. Qxa4 exf3 42. Qxc6 $18 )41. Qxc6 $11 )Qc3 {[%emt 0:0:33]} 41. Rd3 {[%emt 0:50:36]} ({White should play} 41. Qd3 $15 Qxd3 42. Rxd3 )Qc4 {[%emt 0:2:6]} ({Better is} 41... Qb4 $17 42. e5 Ra3 )42. Nd2 $2 {[%emt 0:0:0]} (42. Qe3 $1 $15 )Qc1+ $19 {[%emt 0:4:7]} 43. Kh2 {[%emt 0:0:0] [#]} Ne5 $1 {[%emt 0:4:20]} 44. Rd5 {[%emt 0:0:0]} Qc7 {[%emt 0:1:28]} (44... Ra2 $142 {[%cal Oa5a4] Hoping for ...a4!} 45. f4 Ng6 )45. f4 $17 {[%emt 0:0:0]} Ng6 {[%emt 0:0:22]} 46. g3 {[%emt 0:0:0]} (46. Qg4 $142 )Ra2 $17 {[%emt 0:1:1]} 47. e5 {[%emt 0:0:0]} Qc1 {[%emt 0:3:16]} (47... Qc2 $17 {And now ...a4 would win.} 48. h4 a4 )48. h4 $1 $11 {[%emt 0:0:0]} Ne7 {[%emt 0:12:13]} 49. Rd7 {[%emt 0:0:0]} Nf5 {[%emt 0:5:18]} 50. Qd3 {[%emt 0:0:0]} Qc2 {[%emt 0:0:6]} 51. Qd5 {[%emt 0:0:0]} (51. h5 {simplifies} Qxd3 52. Rxd3 g5 53. hxg6+ Kxg6 54. g4 )Qc3 {[%emt 0:5:23]} 52. Qxa2 {[%emt 0:0:0]} Qxg3+ {[%emt 0:0:4]} 53. Kh1 {[%emt 0:0:0]} Qe1+ {[%emt 0:5:0]} 54. Kg2 {[%emt 0:0:0]} Nxh4+ {[%emt 0:0:19]} 55. Kh3 {[%emt 0:0:0]} Qh1+ {[%emt 0:0:35]} 56. Kg4 $2 {[%emt 0:0:0][%mdl 8192]} (56. Kg3 $11 Qe1+ 57. Kh2 (57. Kg4 h5+ 58. Kxh5 Qe2+ 59. Kxh4 Qh2+ 60. Kg4 Qg2+ 61. Kh4 Qh2+ 62. Kg4 Qg2+ 63. Kh4 Qh2+ $11 )Qe2+ 58. Kh3 Qg2+ 59. Kxh4 Qh2+ 60. Kg4 Qg2+ 61. Kh4 Qh2+ 62. Kg4 Qg2+ 63. Kh4 )h5+ $1 {[%emt 0:5:28]} 57. Kg5 {[%emt 0:0:0]} Qg2+ {[%emt 0:2:6]} 58. Kxh5 {[%emt 0:0:0]} Ng6 {[%emt 0:5:50]} (58... Nf3 $2 59. Nxf3 Qxf3+ (59... Qxa2 60. Ng5+ Kh8 61. Rd8# )(59... g6+ $2 60. Kh4 $19 )60. Kh4 (60. Kg5 $2 {is a self mate.} Qg3+ 61. Kh5 g6# )Qxf4+ 61. Kh3 Qf5+ (61... Qxe5 $2 {too greedy.} 62. Qxf7 Qe3+ 63. Kg2 $18 )62. Kg3 Qxd7 63. Qxa5 $19 )59. Rxf7 {[%emt 0:0:0] [#]} Qg3 $1 {[%emt 0:0:16]} 60. Nf3 {[%emt 0:0:0]} Nxf4+ {[%emt 0:0:7]} 0-1

[Event "57th Biel Festival MTO 2024"]
[White "Juksta,Karolis"]
[Black "Winkelman,Albert"]
[Site "Biel"]
[Round "3.21"]
[Annotator "TA"]
[Result "1-0"]
[Date "2024.07.17"]
[WhiteElo "2400"]
[BlackElo "2243"]
[PlyCount "211"]
[TimeControl "60"]

{[%evp 82,211,747,747,747,747,738,747,729,653,653,647,616,268,268,272,272,272,272,188,202,188,188,107,108,0,188,188,188,188,188,188,203,188,188,188,218,222,223,188,188,0,188,188,188,188,188,142,142,142,142,142,149,142,142,142,142,114,114,114,114,114,114,50,50,51,125,92,125,114,114,114,114,114,114,114,114,114,114,87,107,8,106,51,86,87,107,35,43,8,43,43,51,51,51,44,146,51,29972,29974,29972,27,27,10,10,8,8,8,8,8,8,8,8,8,8,8,56,8,56,56,56,12,268,268,29983,29984,29984,29985,29985,29986,29986,29985]} 1. d4 {[%emt 0:3:29]} Nf6 {[%emt 0:0:40]} 2. c4 {[%emt 0:0:6]} e6 {[%emt 0:0:17]} 3. Nf3 {[%emt 0:0:6]} d5 {[%emt 0:0:15]} 4. Nc3 {[%emt 0:0:10]} Be7 {[%emt 0:0:14]} 5. cxd5 {[%emt 0:0:57]} exd5 {[%emt 0:0:24]} 6. Bf4 {[%emt 0:0:10]} O-O {[%emt 0:0:28]} 7. e3 {[%emt 0:10:22]} c5 {[%emt 0:0:20]} 8. dxc5 {[%emt 0:13:50]} Bxc5 {[%emt 0:0:21]} 9. Be2 {[%emt 0:0:36]} Nc6 {[%emt 0:2:51]} 10. O-O {[%emt 0:0:46]} a6 {[%emt 0:9:49]} 11. Rc1 {[%emt 0:17:6] D37: Queen's Gambit Declined: 5 Bf4.} Ba7 {[%emt 0:24:12]} 12. Ne5 {[%emt 0:8:44]} Ne7 {[%emt 0:19:25]} 13. Bf3 {[%emt 0:6:36]} h6 {[%emt 0:6:58]} 14. Qb3 $146 {[%emt 0:9:39]} ({Predecessor:} 14. Qe2 Be6 15. Rfd1 Qa5 16. h3 Rfd8 17. Bh2 Rac8 18. Nd3 Bf5 19. Nf4 Kf8 20. a3 {½-½ Timoscenko,G (2500)-Shabalov,A (2620) Nova Gorica op 04th 1999 (3)} )b5 {[%emt 0:7:19]} 15. Rfd1 {[%emt 0:8:49]} Be6 {[%emt 0:0:11]} 16. Qa3 {[%emt 0:1:3]} Re8 {[%emt 0:10:10]} 17. h3 {[%emt 0:2:24]} Qb6 {[%emt 0:0:53]} 18. Ne2 {[%emt 0:1:3]} b4 {[%emt 0:5:53]} 19. Qa4 {[%emt 0:2:17]} Rac8 {[%emt 0:7:4]} 20. Nd4 {[%emt 0:2:16]} Rxc1 {[%emt 0:0:42]} 21. Rxc1 {[%emt 0:0:2]} Rc8 {[%emt 0:0:23]} 22. Rxc8+ {[%emt 0:2:47]} Bxc8 {[%emt 0:0:11]} 23. g4 {[%emt 0:10:5]} g5 {[%emt 0:3:6]} 24. Bg3 {[%emt 0:1:23]} h5 {[%emt 0:3:3]} 25. gxh5 {[%emt 0:6:6]} Bxh3 {[%emt 0:0:6]} 26. h6 {[%emt 0:1:3]} Bb8 {[%emt 0:4:36]} 27. Bh5 {[%emt 0:1:11]} Bxe5 {[%emt 0:0:33]} 28. Bxe5 {[%emt 0:0:18]} Nd7 {[%emt 0:0:43]} 29. Bg3 {[%emt 0:0:56]} Qxh6 {[%emt 0:0:53]} 30. Be2 {[%emt 0:0:36]} Nf6 {[%emt 0:2:48]} 31. Qxa6 {[%emt 0:0:22]} Qg6 {[%emt 0:0:30]} 32. Be5 {[%emt 0:0:32]} Ne4 {[%emt 0:0:33]} 33. Qxg6+ {[%emt 0:0:30]} Nxg6 {[%emt 0:0:6]} 34. Bc7 {[%emt 0:0:9]} Bd7 {[%emt 0:0:58]} 35. Ba5 {[%emt 0:0:37]} f5 {[%emt 0:0:17]} 36. Bxb4 {[%emt 0:0:17]} f4 {[%emt 0:0:15]} 37. b3 {[%emt 0:1:0]} fxe3 {[%emt 0:0:16]} 38. fxe3 {[%emt 0:0:2]} Kf7 {[%emt 0:0:24]} 39. a4 {[%emt 0:0:28]} Ne5 {[%emt 0:0:41]} 40. a5 {[%emt 0:1:0]} Nc6 {[%emt 0:0:16]} 41. a6 {[%emt 0:11:1]} Nxd4 {[%emt 0:1:3]} 42. exd4 {[%emt 0:0:16]} Bc6 {[%emt 0:0:35]} 43. Bh5+ {[%emt 0:4:44]} Ke6 {[%emt 0:0:26]} 44. Bg4+ {[%emt 0:0:6]} Kf7 {[%emt 0:0:6]} 45. Bc8 {[%emt 0:0:31]} Ke8 {[%emt 0:0:8]} 46. Bf5 {[%emt 0:20:8]} Ng3 {[%emt 0:1:56]} 47. Bd3 {[%emt 0:1:36]} (47. Bg4 $142 Ne4 48. Ba5 )Kd7 $18 {[%emt 0:0:36]} 48. Bc5 {[%emt 0:7:58]} Ne4 {[%emt 0:3:6]} 49. b4 {[%emt 0:3:43]} Nc3 {[%emt 0:0:9]} 50. Kf2 {[%emt 0:0:40]} Kc7 {[%emt 0:1:8]} 51. Kg3 {[%emt 0:1:2]} Bd7 {[%emt 0:0:10]} 52. Be7 {[%emt 0:1:27]} (52. Kf3 $18 )Kb6 {[%emt 0:0:29]} 53. Bc5+ {[%emt 0:1:50]} (53. Bxg5 $16 Bb5 54. Bg6 )Kc7 $1 $18 {[%emt 0:0:7]} 54. Kf3 {[%emt 0:0:13]} Kc6 {[%emt 0:0:22]} 55. Bf1 {[%emt 0:1:52]} Kc7 {[%emt 0:0:31]} 56. Ke3 {[%emt 0:0:26]} Nb5 {[%emt 0:2:1]} 57. Bg2 {[%emt 0:0:22]} Be6 {[%emt 0:2:3]} 58. Bf3 {[%emt 0:1:10]} Kc6 {[%emt 0:2:57]} 59. Be2 {[%emt 0:0:29]} Bd7 {[%emt 0:0:46]} 60. Kf3 {[%emt 0:0:29]} Nc3 {[%emt 0:9:51]} 61. Bf1 {[%emt 0:3:26]} Kc7 $1 {[%emt 0:9:12]} 62. Kg3 {[%emt 0:5:18]} Ne4+ {[%emt 0:0:8]} 63. Kh2 {[%emt 0:0:12]} Nc3 {[%emt 0:0:6]} 64. Bh3 {[%emt 0:6:7]} (64. Bd3 $18 )Bb5 $16 {[%emt 0:0:54]} 65. a7 {[%emt 0:0:2]} Bc6 {[%emt 0:0:24]} 66. Be6 {[%emt 0:1:16]} Kb7 {[%emt 0:0:53]} 67. Kg3 {[%emt 0:0:42]} Nb5 {[%emt 0:0:13]} 68. Kg4 {[%emt 0:0:30]} Nxa7 {[%emt 0:0:44]} 69. Kxg5 {[%emt 0:1:22]} Nb5 {[%emt 0:0:45]} 70. Kf6 {[%emt 0:0:6]} Nc3 {[%emt 0:5:44]} 71. Ke5 {[%emt 0:0:59]} Ka6 {[%emt 0:0:55]} 72. Be7 {[%emt 0:0:48]} (72. Kd6 $16 Kb5 73. Bh3 )Kb5 $1 $14 {[%emt 0:1:16]} 73. Bh3 {[%emt 0:0:12]} Kb6 {[%emt 0:8:54]} ({Black should try} 73... Be8 $14 )74. Bc5+ {[%emt 0:0:28]} Kc7 {[%emt 0:1:0]} 75. Bf1 {[%emt 0:0:52]} Be8 {[%emt 0:6:58]} 76. Be7 {[%emt 0:0:15]} Kc6 {[%emt 0:1:22]} 77. Bh4 {[%emt 0:0:22]} Bf7 {[%emt 0:0:16]} 78. Be1 {[%emt 0:1:1]} Nb5 {[%emt 0:0:13]} 79. Bg2 {[%emt 0:0:19]} Nd6 {[%emt 0:0:26]} 80. Kf6 {[%emt 0:0:25]} Bg8 {[%emt 0:2:5]} 81. Bg3 {[%emt 0:0:47]} (81. Bf1 $16 )Nb5 {[%emt 0:3:5]} (81... Ne4+ $11 {keeps the balance.} 82. Bxe4 dxe4 )82. Be5 {[%emt 0:0:23]} ({White should play} 82. Bf2 $16 )Nc3 {[%emt 0:3:33]} 83. Bf1 {[%emt 0:0:7]} Bh7 {[%emt 0:0:26]} 84. Ke7 {[%emt 0:0:24]} (84. Bf4 $16 )Bf5 $14 {[%emt 0:1:21]} 85. Kd8 {[%emt 0:0:48]} Na2 {[%emt 0:1:33]} 86. b5+ {[%emt 0:0:38]} Kb7 {[%emt 0:0:13]} 87. Bd6 {[%emt 0:0:43]} Nc3 {[%emt 0:0:10]} 88. Bb4 {[%emt 0:0:10]} Na4 {[%emt 0:1:31]} (88... Ne4 $14 )89. Bc5 {[%emt 0:0:38]} (89. Be2 $16 )Be4 $2 {[%emt 0:1:58][%mdl 8192]} (89... Nc3 $14 )90. Bh3 $1 {[%emt 0:0:42]} Nb6 {[%emt 0:1:4]} 91. Bg4 $2 {[%emt 0:0:24]} (91. Bxb6 $1 {mates} Kxb6 92. Bd7 Bd3 93. Ke7 Bc4 94. Kd6 Bb3 95. Be8 Ba2 96. Bc6 )Bd3 $11 {[%emt 0:0:27]} 92. Be6 {[%emt 0:0:33]} Bxb5 {[%emt 0:0:8]} 93. Bxb6 {[%emt 0:0:3]} Kxb6 {[%emt 0:0:17]} 94. Bxd5 {[%emt 0:0:1]} Bc6 {[%emt 0:0:42]} 95. Be6 {[%emt 0:1:20]} Kb7 {[%emt 0:0:5]} 96. Bc8+ {[%emt 0:0:36]} Kb8 {[%emt 0:0:26]} 97. Ba6 {[%emt 0:0:33]} Bh1 {[%emt 0:2:1]} 98. Kd7 {[%emt 0:0:6]} Bg2 {[%emt 0:0:11]} 99. Kd6 {[%emt 0:0:19]} (99. Bc4 $1 $14 )Bf3 {[%emt 0:0:8]} (99... Be4 $1 $11 )100. Bb5 $1 $14 {[%emt 0:0:54]} Kc8 {[%emt 0:0:11]} 101. Bc6 $1 {[%emt 0:0:6]} Bg4 $2 {[%emt 0:5:53][%mdl 8192] [#]} (101... Bd1 $1 $11 {and Black has nothing to worry.} )102. Ke7 $1 $18 {[%emt 0:0:1]} Bd1 $2 {[%emt 0:0:33]} (102... Kb8 $18 103. Be4 Ka7 )103. d5 {[%emt 0:0:41]} Bf3 {[%emt 0:0:28] [#]} 104. Bd7+ $1 {[%emt 0:0:6]} Kc7 {[%emt 0:0:30]} 105. d6+ {[%emt 0:0:4]} Kb6 {[%emt 0:0:9]} 106. Be8 {[%emt 0:0:31]} 1-0

[Event "57th Biel Festival MTO 2024"]
[White "Munkhzul,Turmunkh"]
[Black "Tahay,Alexis"]
[Site "Biel"]
[Round "3.22"]
[Annotator "RC"]
[Result "0-1"]
[Date "2024.07.17"]
[WhiteElo "2232"]
[BlackElo "2375"]
[PlyCount "162"]
[TimeControl "60"]

1. e4 {[%emt 0:0:3]} c5 {[%emt 0:3:58]} 2. Nf3 {[%emt 0:0:14]} d6 {[%emt 0:0:5]} 3. d4 {[%emt 0:0:13]} cxd4 {[%emt 0:0:19]} 4. Nxd4 {[%emt 0:0:7]} Nf6 {[%emt 0:0:4]} 5. Nc3 {[%emt 0:0:18]} a6 {[%emt 0:0:4]} 6. Be2 {[%emt 0:0:44]} e6 {[%emt 0:0:6]} 7. O-O {[%emt 0:0:37]} Be7 {[%emt 0:0:20]} 8. f4 {[%emt 0:0:59]} O-O {[%emt 0:0:21]} 9. Be3 {[%emt 0:1:4]} Nc6 {[%emt 0:1:49]} 10. a4 {[%emt 0:2:12]} Bd7 {[%emt 0:2:42]} 11. Qe1 {[%emt 0:5:42]} e5 {[%emt 0:6:24]} 12. Nb3 {[%emt 0:7:32]} Nb4 {[%emt 0:5:20]} 13. Qd2 {[%emt 0:4:33]} Bc6 {[%emt 0:7:46]} 14. Bf3 {[%emt 0:2:7]} exf4 {[%emt 0:7:54]} 15. Bxf4 {[%emt 0:9:6]} d5 {[%emt 0:0:7]} 16. e5 {[%emt 0:8:11]} Ne4 {[%emt 0:0:30]} 17. Qe2 {[%emt 0:4:52]} Ng5 {[%emt 0:8:21]} 18. Bg4 {[%emt 0:8:59]} Ne6 {[%emt 0:7:30]} 19. Bxe6 {[%emt 0:2:33]} fxe6 {[%emt 0:0:2]} 20. Rad1 {[%emt 0:3:0]} Bd7 {[%emt 0:3:44]} 21. Qd2 {[%emt 0:6:51]} Qe8 {[%emt 0:5:56]} 22. Ne4 {[%emt 0:13:45]} Bxa4 {[%emt 0:14:14]} 23. Nd6 {[%emt 0:2:22]} Bxd6 {[%emt 0:0:8]} 24. exd6 {[%emt 0:0:12]} Bxb3 {[%emt 0:4:18]} 25. Qxb4 {[%emt 0:1:0]} Bxc2 {[%emt 0:11:30]} 26. Rd2 {[%emt 0:4:1]} Ba4 {[%emt 0:0:3]} 27. Qxb7 {[%emt 0:3:25]} Bb5 {[%emt 0:1:44]} 28. Rff2 {[%emt 0:1:42]} Rf7 {[%emt 0:8:14]} 29. Qb6 {[%emt 0:0:27]} e5 {[%emt 0:2:18]} 30. Bg3 {[%emt 0:0:54]} Rxf2 {[%emt 0:0:8]} 31. Qxf2 {[%emt 0:1:42]} Qe6 {[%emt 0:1:9]} 32. Qc5 {[%emt 0:4:3]} Bc4 {[%emt 0:1:24]} 33. Qe3 {[%emt 0:1:51]} Re8 {[%emt 0:0:48]} 34. b3 {[%emt 0:4:27]} Bb5 {[%emt 0:0:6]} 35. Qc5 {[%emt 0:0:47]} d4 {[%emt 0:0:33]} 36. h3 {[%emt 0:4:12]} Qxb3 {[%emt 0:4:16]} 37. Kh2 {[%emt 0:0:9]} Qe6 {[%emt 0:0:17]} 38. Rd1 {[%emt 0:0:39]} d3 {[%emt 0:1:30]} 39. Re1 {[%emt 0:2:8]} e4 {[%emt 0:0:56]} 40. Qe3 {[%emt 0:0:14]} Qd5 {[%emt 0:1:24]} 41. Rc1 {[%emt 0:50:45]} d2 {[%emt 0:12:10]} 42. Rd1 {[%emt 0:0:0]} Qd3 {[%emt 0:0:9]} 43. Bf4 {[%emt 0:0:0]} Qxe3 {[%emt 0:0:14]} 44. Bxe3 {[%emt 0:0:0]} Kf7 {[%emt 0:1:1]} 45. Rxd2 {[%emt 0:0:0]} Ke6 {[%emt 0:1:56]} 46. Rd4 {[%emt 0:0:0]} Ke5 {[%emt 0:1:2]} 47. Kg3 {[%emt 0:0:0]} Rd8 {[%emt 0:1:34]} 48. Rb4 {[%emt 0:0:0]} Rd7 {[%emt 0:1:21]} 49. Bb6 {[%emt 0:0:0]} Bd3 {[%emt 0:5:14]} 50. Kf2 {[%emt 0:0:0]} Kxd6 {[%emt 0:0:29]} 51. Bd4 {[%emt 0:0:0]} Kc6 {[%emt 0:0:52]} 52. Ke3 {[%emt 0:0:0]} Kd5 {[%emt 0:3:9]} 53. Rb8 {[%emt 0:0:0]} g6 {[%emt 0:1:32]} 54. Rc8 {[%emt 0:0:0]} Rb7 {[%emt 0:0:52]} 55. Rc5+ {[%emt 0:0:0]} Kd6 {[%emt 0:0:9]} 56. h4 {[%emt 0:0:0]} Rb2 {[%emt 0:3:18]} 57. Rg5 {[%emt 0:0:0]} Re2+ {[%emt 0:3:27]} 58. Kf4 {[%emt 0:0:0]} Ke6 {[%emt 0:5:53]} 59. h5 {[%emt 0:0:0]} gxh5 {[%emt 0:0:7]} 60. Rxh5 {[%emt 0:0:0]} Rxg2 {[%emt 0:0:2]} 61. Rxh7 {[%emt 0:0:0]} Kd5 {[%emt 0:15:1]} 62. Be3 {[%emt 0:0:0]} Rg8 {[%emt 0:3:27]} 63. Rd7+ {[%emt 0:0:46]} Ke6 {[%emt 0:0:19]} 64. Rd4 {[%emt 0:3:24]} Rf8+ {[%emt 0:0:4]} 65. Kg4 {[%emt 0:1:0]} Ke5 {[%emt 0:1:3]} 66. Rd7 {[%emt 0:0:39]} Rg8+ {[%emt 0:2:1]} 67. Kh4 {[%emt 0:0:14]} Ra8 {[%emt 0:0:30]} 68. Kg3 {[%emt 0:4:10]} a5 {[%emt 0:0:58]} 69. Kf2 {[%emt 0:5:48]} a4 {[%emt 0:0:18]} 70. Ra7 {[%emt 0:0:52]} Rxa7 {[%emt 0:13:7]} 71. Bxa7 {[%emt 0:0:7]} Kd5 {[%emt 0:0:28]} 72. Ke3 {[%emt 0:0:33]} a3 {[%emt 0:0:48]} 73. Bd4 {[%emt 0:0:22]} Kc4 {[%emt 0:0:1]} 74. Be5 {[%emt 0:0:21]} Kb3 {[%emt 0:0:10]} 75. Kd2 {[%emt 0:0:10]} Ka2 {[%emt 0:0:2]} 76. Kc1 {[%emt 0:0:40]} e3 {[%emt 0:0:5]} 77. Bg3 {[%emt 0:1:54]} Kb3 {[%emt 0:1:56]} 78. Bh4 {[%emt 0:0:39]} e2 {[%emt 0:0:42]} 79. Kd2 {[%emt 0:0:14]} Bc4 {[%emt 0:0:22]} 80. Be7 {[%emt 0:2:56]} Kb2 {[%emt 0:0:9]} 81. Bf6+ {[%emt 0:0:31]} Kb1 {[%emt 0:0:2]} 0-1

[Event "57th Biel Festival MTO 2024"]
[White "Kalogridis,Antonios"]
[Black "Follesa,Enrico"]
[Site "Biel"]
[Round "3.23"]
[Annotator "RC"]
[Result "1-0"]
[Date "2024.07.17"]
[WhiteElo "2391"]
[BlackElo "2241"]
[PlyCount "89"]
[TimeControl "60"]

1. d4 {[%emt 0:0:3]} Nf6 {[%emt 0:0:7]} 2. c4 {[%emt 0:0:2]} e6 {[%emt 0:0:7]} 3. Bf4 {[%emt 0:0:2]} d5 {[%emt 0:0:11]} 4. cxd5 {[%emt 0:0:5]} exd5 {[%emt 0:0:11]} 5. e3 {[%emt 0:0:6]} Bd6 {[%emt 0:2:18]} 6. Bxd6 {[%emt 0:0:5]} Qxd6 {[%emt 0:0:7]} 7. Bd3 {[%emt 0:0:2]} O-O {[%emt 0:2:32]} 8. Nc3 {[%emt 0:0:3]} b6 {[%emt 0:5:50]} 9. Nf3 {[%emt 0:0:35]} Bb7 {[%emt 0:4:15]} 10. O-O {[%emt 0:8:31]} c5 {[%emt 0:9:25]} 11. dxc5 {[%emt 0:1:4]} bxc5 {[%emt 0:4:20]} 12. Rc1 {[%emt 0:0:20]} Nbd7 {[%emt 0:3:33]} 13. Re1 {[%emt 0:4:16]} Rfe8 {[%emt 0:7:28]} 14. b4 {[%emt 0:1:20]} Rac8 {[%emt 0:7:11]} 15. bxc5 {[%emt 0:9:47]} Nxc5 {[%emt 0:6:44]} 16. Bf5 {[%emt 0:3:55]} Rcd8 {[%emt 0:14:40]} 17. Qd4 {[%emt 0:4:56]} a6 {[%emt 0:2:3]} 18. Nb5 {[%emt 0:8:40]} axb5 {[%emt 0:0:13]} 19. Rxc5 {[%emt 0:0:6]} Qa6 {[%emt 0:3:5]} 20. Bd3 {[%emt 0:1:13]} Qa3 {[%emt 0:14:8]} 21. Rc7 {[%emt 0:21:6]} Ba6 {[%emt 0:4:54]} 22. Ra7 {[%emt 0:15:45]} Rb8 {[%emt 0:0:12]} 23. Rb1 {[%emt 0:1:1]} Rec8 {[%emt 0:0:45]} 24. Bf1 {[%emt 0:3:4]} Rb7 {[%emt 0:7:32]} 25. Rxb7 {[%emt 0:3:55]} Bxb7 {[%emt 0:0:2]} 26. Rxb5 {[%emt 0:0:53]} Bc6 {[%emt 0:4:32]} 27. Qb2 {[%emt 0:6:46]} Qd6 {[%emt 0:0:10]} 28. Rb6 {[%emt 0:0:25]} Nd7 {[%emt 0:0:13]} 29. Rb4 {[%emt 0:1:22]} Nc5 {[%emt 0:0:18]} 30. Qe5 {[%emt 0:2:11]} Qf8 {[%emt 0:1:7]} 31. Rb1 {[%emt 0:1:53]} Nd7 {[%emt 0:0:53]} 32. Qf5 {[%emt 0:2:14]} g6 {[%emt 0:1:47]} 33. Qd3 {[%emt 0:0:6]} Ra8 {[%emt 0:0:50]} 34. Qc3 {[%emt 0:0:41]} Qd6 {[%emt 0:0:36]} 35. Nd4 {[%emt 0:0:35]} Rc8 {[%emt 0:0:50]} 36. Qb4 {[%emt 0:1:31]} Qf6 {[%emt 0:1:34]} 37. Rc1 {[%emt 0:1:16]} Rb8 {[%emt 0:3:9]} 38. Qa3 {[%emt 0:0:14]} Bb7 {[%emt 0:0:45]} 39. Rc7 {[%emt 0:2:45]} Bc8 {[%emt 0:0:51]} 40. Qc1 {[%emt 0:1:21]} Nb6 {[%emt 0:0:29]} 41. Nc6 {[%emt 0:55:38]} Ra8 {[%emt 0:4:27]} 42. Ne7+ {[%emt 0:0:0]} Kf8 {[%emt 0:1:30]} 43. Nxc8 {[%emt 0:0:0]} Nc4 {[%emt 0:0:34]} 44. Bxc4 {[%emt 0:0:0]} dxc4 {[%emt 0:0:2]} 45. Qxc4 {[%emt 0:0:0]} 1-0

[Event "57th Biel Festival MTO 2024"]
[White "Sethuraman,S.P."]
[Black "Smirnov,Mark"]
[Site "Biel"]
[Round "3.24"]
[Annotator "TA"]
[Result "1-0"]
[Date "2024.07.17"]
[WhiteElo "2587"]
[BlackElo "2203"]
[PlyCount "49"]
[TimeControl "60"]

{[%evp 13,49,7,24,4,10,20,11,-7,29,0,22,0,0,-21,0,-15,-5,-9,0,-20,0,0,0,0,0,0,0,0,-14,0,18,0,0,0,0,0,616,621]} 1. e4 {[%emt 0:0:28]} e5 {[%emt 0:0:44]} 2. Nf3 {[%emt 0:0:8]} Nf6 {[%emt 0:0:8]} 3. Nxe5 {[%emt 0:0:41]} d6 {[%emt 0:0:6]} 4. Nf3 {[%emt 0:0:8]} Nxe4 {[%emt 0:0:7]} 5. Nc3 {[%emt 0:0:5]} Nxc3 {[%emt 0:0:26]} 6. dxc3 {[%emt 0:0:6]} Be7 {[%emt 0:0:16]} 7. Be3 {[%emt 0:0:44]} Nd7 {[%emt 0:0:10]} 8. Qd2 {[%emt 0:1:36]} O-O {[%emt 0:0:17]} 9. O-O-O {[%emt 0:0:13]} Nf6 {[%emt 0:0:27]} 10. h4 {[%emt 0:6:14] Die Stellung ist ausgeglichen.} Bg4 {[%emt 0:12:0]} 11. Be2 {[%emt 0:0:22]} d5 {[%emt 0:3:24]} 12. Ng5 {[%emt 0:5:36]} Bxe2 {[%emt 0:2:26]} 13. Qxe2 {[%emt 0:0:6]} Qd7 {[%emt 0:4:11]} 14. f3 {[%emt 0:9:29]} Rfe8 {[%emt 0:13:3][%cal Oe7c5] Weiss sollte ...Bc5! verhindern.} 15. Qd3 {[%emt 0:0:10]} (15. Qd2 $5 )Bd6 {[%emt 0:2:44]} 16. Kb1 {[%emt 0:10:55]} Re7 {[%emt 0:7:8]} 17. g4 {[%emt 0:4:45]} Rae8 {[%emt 0:1:54]} 18. Bd4 {[%emt 0:1:19][%cal Od4f6] [#] Bxf6! wäre nun fies.} (18. Bxa7 $2 b6 19. Qa6 Ra8 $19 )Be5 {[%emt 0:0:10]} 19. Bf2 {[%emt 0:0:36][%cal Og5h3]} (19. Bc5 $5 Bd6 $8 20. Bd4 $11 (20. Bxa7 $2 {geht unter.} b6 $19 ))b6 {[%emt 0:28:57]} 20. Nh3 {[%emt 0:1:34]} (20. a3 $5 )c6 {[%emt 0:0:13]} 21. h5 {[%emt 0:2:13][%cal Bh4h5,Bh5h6][%mdl 32]} Qd6 {[%emt 0:1:50]} 22. Bh4 {[%emt 0:11:44][%cal Oh5h6]} Bf4 {[%emt 0:13:9]} 23. h6 {[%emt 0:9:9] [#] Und hxg7 würde nun gewinnen.} Re3 $1 {[%emt 0:6:22]} (23... Bxh6 $2 {verliert.} 24. g5 $18 )24. Qf5 {[%emt 0:5:33]} Bg3 $2 {[%emt 0:0:10][%mdl 8192]} ({Ein No Go ist} 24... Bxh6 $6 25. g5 g6 26. Qxf6 $14 )(24... Rxf3 $11 25. Bg5 Bxg5 26. Qxf3 gxh6 )25. Qg5 {[%emt 0:1:29] Gewichteter Fehlerwert: Weiß=0.08 (makellos) /Schwarz=0.30.  Verlustzug:     	---       	Schwarz=1     Ungenau:       	Weiß=2     	Schwarz=1     OK:         	Weiß=5     	Schwarz=8     Bester:       	Weiß=1     	---        Stark:        	---       	Schwarz=1} 1-0